Cogmind - Beta 13 @@@ ROGUE MODE // 2024.05.03 @ 17:33:52 Player: Exceptionally Mediocre Result: Destroyed by D-53 Grenadier with Mini Grenade Launcher Performance ------------- Evolutions (0) 0 Regions Visited (2) 400 Robots Destroyed (18) 90 Value Destroyed (290) 290 Prototype IDs (0) 0 Alien Tech Used (0) 0 Bonus (0) 0 TOTAL SCORE: 780 Bonus ------- None Cogmind --------- Core Integrity 0/250 Matter 282/300 Energy 102/250 System Corruption 0% Temperature Cool (0) Movement Core (1500) Ox29 Location -10/Mines Parts ------- > --- POWER (1) -------- Ion Engine > --- PROPULSION (2) --- (None) > --- UTILITY (2) ------ Huge Storage Unit Structural Scanner > --- WEAPON (2) ------- Light Assault Rifle Light Assault Rifle > --- INVENTORY (25) --- Ion Engine Light Ion Engine Light Ion Engine Light Nuclear Core Small Storage Unit Utility Shielding Improved Utility Shielding Small Laser Light Assault Rifle Light Assault Rifle Light Assault Rifle Bore Cannon Rocket Launcher Mini Grenade Launcher Peak State ------------ > --- POWER ------------ Light Ion Engine > --- PROPULSION ------- Light Treads Light Treads > --- UTILITY ---------- Huge Storage Unit Utility Shielding > --- WEAPON ----------- Light Assault Rifle Mini Grenade Launcher > --- INVENTORY -------- Ion Engine Ion Engine Light Ion Engine Light Ion Engine Light Nuclear Core Aluminum Leg Small Storage Unit Improved Utility Shielding Small Laser Light Assault Rifle Light Assault Rifle Light Assault Rifle Light Assault Rifle Rocket Launcher Mini Grenade Launcher [Rating: 10] Favorites ----------- Power Ion Engine Engine Ion Engine Propulsion Light Treads Treads Light Treads Leg Aluminum Leg Wheel Wheel Utility Huge Storage Unit Device Structural Scanner Storage Huge Storage Unit Protection Utility Shielding Weapon Light Assault Rifle Ballistic Gun Light Assault Rifle Launcher Mini Grenade Launcher Build | -11 -10 -10 ------- Run | Yrd Mat Min Slots Evolved . | . . . Power . | . . . Propulsion . | . . . Utility . | . . . Weapon . | . . . Parts Attached 22 | 7 7 8 Power 4 | 2 1 1 Engine 4 | 2 1 1 Core . | . . . Reactor . | . . . Propulsion 6 | 2 2 2 Treads 4 | 2 2 . Leg 1 | . . 1 Wheel 1 | . . 1 Hover . | . . . Flight . | . . . Utility 4 | 1 1 2 Device 1 | . . 1 Storage 2 | 1 1 . Processor . | . . . Hackware . | . . . Protection 1 | . . 1 Artifact . | . . . Weapon 8 | 2 3 3 Energy Gun . | . . . Energy Cannon . | . . . Ballistic Gun 7 | 2 3 2 Ballistic Cannon . | . . . Launcher 1 | . . 1 Special Weapon . | . . . Impact Weapon . | . . . Slashing Weapon . | . . . Piercing Weapon . | . . . Special Melee Weapon . | . . . Unidentified Prototypes . | . . . Parts Lost 7 | . . 7 Power 1 | . . 1 Propulsion 4 | . . 4 Utility . | . . . Weapon 2 | . . 2 Highest Loss Streak 4 | . . 4 To Critical Strikes . | . . . Average Slot Usage (%) 88 | . 80 97 Engine 13 | . 13 14 Treads 24 | . 24 23 Storage 14 | . 14 14 Protection 6 | . . 13 Ballistic Gun 26 | . 27 24 Launcher 1 | . . 2 Naked Turns . | . . . Heaviest Build 88 | 13 88 87 Greatest Support 40 | 40 40 40 Greatest Overweight (x) 8 | . 4 8 Average Overweight (x) 2 | . 2 2 Largest Inventory Capacity 25 | 8 25 25 Average Capacity 23 | 7 24 25 Most Carried 16 | 2 13 16 Average Carried 10 | 1 8 13 Final Capacity 25 | 8 25 25 Final Carried 14 | 2 13 14 Class Distribution -------------------- 100% | Mutant Dominant Class ---------------- Mutant | -10/Materials Mutant | -10/Mines Resources | -11 -10 -10 ----------- Run | Yrd Mat Min Matter Collected 665 | 223 285 157 Remotely . | . . . Salvage Created 671 | 28 494 149 Parts 35 | 5 24 6 Haulers Intercepted . | . . . Recyclers Shooed 1 | . 1 . Parts Field Recycled . | . . . Retrieved Matter . | . . . Parts Self-Destructed . | . . . Prevented . | . . . Kills | -11 -10 -10 ------- Run | Yrd Mat Min Combat Hostiles Destroyed 13 | . 8 5 Guns 11 | . 8 3 AOE 2 | . . 2 Classes Destroyed 8 | 2 4 2 Worker 1 | 1 . . Builder 1 | . . 1 Tunneler 1 | 1 . . Recycler 3 | . 2 1 Watcher 1 | . 1 . Swarmer 6 | . 3 3 Grunt 5 | . 5 . Assembled 2 | . . 2 Best Kill Streak 3 | 1 3 3 Combat Bots Only 3 | . 3 3 Max Kills in Single Turn 1 | 1 1 1 Gunslinging . | . . . Exploded 1 | . . 1 Melee . | . . . Uniques/NPCs Destroyed . | . . . Combat | -11 -10 -10 -------- Run | Yrd Mat Min Hostile Shots Fired 73 | . 38 35 Missed 16 | . 12 4 Damage Taken 998 | . 262 736 Core 254 | . 17 237 Absorbed by Shields . | . . . Redirected to Shielding 5 | . . 5 Core Remaining (%) 100 | 100 . . Volleys Fired 79 | 11 40 28 Largest 2 | 2 2 2 Hottest 50 | 40 40 50 Shots Fired 144 | 22 74 48 Gun 139 | 22 74 43 Cannon . | . . . Launcher 5 | . . 5 Special . | . . . Kinetic 139 | 22 74 43 Thermal . | . . . Explosive 5 | . . 5 Electromagnetic . | . . . Robot Hit Streak 10 | 4 10 8 Robot Miss Streak 5 | 2 2 5 Penetration Max . | . . . Secondary Targets 3 | . 2 1 Max Gunslinging Chain 1 | . 1 1 Shots Hit Robots 93 | 15 53 25 Core Hits 38 | 3 22 13 Critical Kills . | . . . Critical Parts Destroyed 1 | . 1 . Critical Strikes 1 | . 1 . Destroy 1 | . 1 . Melee Attacks . | . . . Impact . | . . . Slashing . | . . . Piercing . | . . . Sneak Attacks . | . . . Combat Hostiles . | . . . Follow-up Attacks . | . . . Damage Inflicted 1065 | 152 546 367 Guns 884 | 152 537 195 Cannons . | . . . Explosions 170 | . . 170 Melee . | . . . Ramming 11 | . 9 2 Kinetic 884 | 152 537 195 Thermal . | . . . Explosive 170 | . . 170 Electromagnetic . | . . . Impact . | . . . Slashing . | . . . Piercing . | . . . Highest Corruption . | . . . Average Corruption . | . . . Corruption Purged . | . . . Corruption Blocked . | . . . Overload Shots . | . . . Overflow Damage 24 | . . 24 Projectiles . | . . . Explosions 24 | . . 24 Melee . | . . . Knockbacks . | . . . Impact . | . . . Kinetic . | . . . Secondary . | . . . Self-Inflicted Damage 97 | . . 97 Shots 4 | . . 4 Rammed 2 | . 1 1 Targets Rammed 2 | . 1 1 Kicked . | . . . Crushed . | . . . Highest Temperature 12 | . 12 10 Average Temperature 6 | . 6 7 Received Heat Transfer 102 | . 102 . Siege Activations . | . . . Robots Corrupted . | . . . Combat Hostiles . | . . . Parts Fried . | . . . Impact Corruptions . | . . . Robots Melted . | . . . Combat Hostiles . | . . . Parts Melted . | . . . Heat Transferred . | . . . Parts Sabotaged . | . . . Parts Stolen . | . . . Parts Stripped . | . . . Power Chain Reactions . | . . . Alert | -11 -10 -10 ------- Run | Yrd Mat Min Peak Influence 226 | 10 226 60 Initial 6 | . 6 . Average 29 | 2 53 7 Maximum Alert Level 1 | . 1 . Low Security (%) 98 | 100 97 100 Level 1 1 | . 2 . Level 2 . | . . . Level 3 . | . . . Level 4 . | . . . Level 5 . | . . . High Security . | . . . Max Security . | . . . Squads Dispatched 1 | . 1 . Investigation 1 | . 1 . Extermination . | . . . Reinforcement . | . . . Assault . | . . . Garrison . | . . . Intercept . | . . . Searches Triggered . | . . . Construction Impeded . | . . . Haulers Reinforced . | . . . Active Scanning Responses . | . . . Cargo Convoy Interrupts . | . . . Stealth | -11 -10 -10 --------- Run | Yrd Mat Min Distress Signals 1 | . 1 . Communications Jammed . | . . . Distress Signals . | . . . Times Spotted 20 | . 12 8 Peak Tracking Total 3 | . 3 3 Tactical Retreats . | . . . Traps | -11 -10 -10 ------- Run | Yrd Mat Min Traps Triggered 4 | . 3 1 Indirectly . | . . . Trap Hack Attempts . | . . . Triggered . | . . . Disarmed . | . . . Reprogrammed . | . . . Reused . | . . . Traps Extracted . | . . . Installed . | . . . Triggered . | . . . Machines | -11 -10 -10 ---------- Run | Yrd Mat Min Machines Disabled . | . . . Max in Single Turn . | . . . Machines Repaired . | . . . Machines Dismantled . | . . . Machines Sabotaged . | . . . Overloaded Fab Kills . | . . . Hacking | -11 -10 -10 --------- Run | Yrd Mat Min Machines Accessed 6 | . 5 1 Terminals 4 | . 4 . Fabricators . | . . . Repair Stations . | . . . Recycling Units 1 | . 1 . Scanalyzers . | . . . Garrison Access . | . . . Total Hacks 13 | . 12 1 Successful 7 | . 6 1 Failed 6 | . 6 . Catastrophic . | . . . Database Lockouts . | . . . Manual 10 | . 10 . Terminals 11 | . 11 . Fabricators . | . . . Repair Stations . | . . . Recycling Units 1 | . 1 . Scanalyzers . | . . . Garrison Access . | . . . Terminal Hacks 2 | . 1 1 Open Door 1 | . . 1 Terminal Index 1 | . 1 . Fabricator Hacks . | . . . Repair Station Hacks . | . . . Recycling Unit Hacks 1 | . 1 . Retrieve Components 1 | . 1 . Scanalyzer . | . . . Garrison Access Hacks . | . . . Unauthorized Hacks 4 | . 4 . Terminals 4 | . 4 . Botnet 4 | . 4 . Fabricators . | . . . Repair Stations . | . . . Recycling Units . | . . . Scanalyzers . | . . . Garrison Access . | . . . Data Cores Recovered . | . . . Used . | . . . Hacking Detections 3 | . 3 . Full Trace Events 1 | . 1 . Feedback Events . | . . . Feedback Blocked . | . . . Robot Schematics Acquired . | . . . Robots Built . | . . . Authchips . | . . . Time . | . . . Total Robot Build Rating . | . . . Part Schematics Acquired . | . . . Parts Built . | . . . Authchips . | . . . Time . | . . . Total Part Build Rating . | . . . Parts Repaired . | . . . Time . | . . . Parts Recycled . | . . . Recycled Matter . | . . . Retrieved Matter . | . . . Retrieved Components 6 | . 6 . Parts Scanalyzed . | . . . Part Schematics Acquired . | . . . Parts Damaged . | . . . Bothacking | -11 -10 -10 ------------ Run | Yrd Mat Min Used RIF Installer . | . . . Robots Hacked . | . . . Non-combat . | . . . Combat . | . . . Robot Hacks Applied . | . . . Relay Couplers Released . | . . . Fabnet Peak Effective % . | . . . Robots Rewired . | . . . Allies Hacked . | . . . Hacks Repelled . | . . . Allies | -11 -10 -10 -------- Run | Yrd Mat Min Total Allies . | . . . Largest Group . | . . . Highest-Rated Group . | . . . Highest-Rated Ally . | . . . Total Orders . | . . . Ally Attacks . | . . . Total Damage . | . . . Kills . | . . . Allies Corrupted . | . . . Allies Melted . | . . . Intel | -11 -10 -10 ------- Run | Yrd Mat Min Robot Analysis Total . | . . . Derelict Logs Recovered 1 | . . 1 Drone Launches . | . . . Drone Recoveries . | . . . Exploration | -11 -10 -10 ------------- Run | Yrd Mat Min Turns Passed 1640 | 107 809 724 Spaces Moved 445 | 45 208 192 Core 6 | 6 . . Treads 419 | 39 208 172 Legs 10 | . . 10 Wheels 10 | . . 10 Hover . | . . . Flight . | . . . Fastest Speed 50 | 50 160 200 Average Speed 311 | 145 327 332 Slowest Speed 680 | 160 480 680 Overloaded Moves . | . . . Propulsion Burnouts . | . . . Robots Hopped . | . . . Cave-ins Triggered . | . . . Exploration Rate (%) 34 | 4 48 51 Regions Visited 2 Branch Regions 1 Pre-discovered Areas 1 | . . 1 Known Exits Taken . | . . . Unknown Exits Taken 2 | 1 1 . Scrap Searched . | . . . Spaces Dug 26 | . . 26 Terrain Destroyed 61 | . . 61 Melee . | . . . Projectile . | . . . AOE 61 | . . 61 Terrain Rammed . | . . . Walls Destroyed . | . . . Machines Disabled . | . . . Actions | -11 -10 -10 --------- Run | Yrd Mat Min Total 565 | 64 266 235 Wait . | . . . Move 443 | 44 207 192 Hop . | . . . Pick Up 17 | 2 10 5 Fast Attach 14 | 5 7 2 Attach 6 | 1 . 5 Detach 2 | . 1 1 Swap 2 | 1 . 1 Drop . | . . . Fire 79 | 11 40 28 Melee . | . . . Ram . | . . . Kick . | . . . Crush 2 | . 1 1 Escape Stasis . | . . . Rewire . | . . . Trap . | . . . Miscellaneous . | . . . Route ------- -11/Scrapyard -10/Materials (discovered 2 exits: [*Mat] / *Min) -10/Mines History --------- Turn | Location | Event 29 | -11/Scrapyard | Discovered new exit (range 16) 108 | -11/Scrapyard | Entered Materials 310 | -10/Materials | Build established: Mutant 399 | -10/Materials | Discovered new exit (range 4) 846 | -10/Materials | Discovered new exit (range 12) 917 | -10/Materials | Entered Mines 924 | -10/Mines | Received a Rocket Launcher from a helpful Derelict 1118 | -10/Mines | Learned location of Storage (-7) 1189 | -10/Mines | Met a Derelict who couldn't figure out how to use a Trap Extractor 1494 | -10/Mines | Assembled infested the area 1499 | -10/Mines | Assisted by a Guerilla fighting off Assembled 1635 | -10/Mines | Core integrity fell below 50% 1639 | -10/Mines | Core integrity fell below 20% 1641 | -10/Mines | Destroyed by D-53 Grenadier with Mini Grenade Launcher Last Messages --------------- 01592_ K-01 Serf collects debris. 01600_ The unstable cave ceiling collapses. 01603_ K-01 Serf collects debris. 01612_ Acquired Wheel. 01613_ Acquired 11 matter. 01615_ K-01 Serf collects debris. 01618_ Acquired Structural Scanner. 01619_ K-01 Serf collects debris. 01621_ Acquired Corrupted Bore Cannon. 01622_ Acquired 56 matter. 01626_ Acquired 4 matter. 01632_ Lgt. Ion Engine destroyed. 01634_ as-26950 destroyed. 01635_ K-01 Serf collects debris. 01637_ Wheel destroyed. 01639_ The unstable cave ceiling collapses. 01639_ K-01 Serf collects debris. 01639_ Mni. Grenade Launcher destroyed. 01641_ The unstable cave ceiling collapses. 01641_ Aluminum Leg destroyed. Map ----- +----------------------------------------------------+ | ?????????????????????????????????????????????????? | | ???????????????????????????????????????????####### | | ?????????????????????????????????###???????# | | ???????????????????????????????? ####????# """ | | ??????????????????????????##???? ##???# """ | | ?????????????????????????## ?? ##??# """ | | ?????????????????????????# #??# | | ?????????????????????????# ##?##### # | | ?????????????????????????# #?????# # | | ?????????????????????????# """ #?????# # | | ????????????????????####?# """ ???????# # | | ???????????????????? ####?# """ #????????#*# | | ???????????????????? ##?# #?????????# # | | ????????????????????? ! #?# #????####### # | | ????????????????????#!%!?## # ###??#### # | | ????????????????????## ?# # ###??# ####### | | ???????????????????### ?# ## ## ##??# ## #?????? | | ???????????????????### ## # # # ##???# ## #?????? | | ???????????????????## ### # ##???# ## #?????? | | ???????????????????## ### #k ###??# # #?????? | | ???????????????????## d ### ##"*### ##????? | | ??????????????????### d ## !^!#X #????? | | ??????????????????### ## ]^ #????? | | ?????????????????### ### [! !#????? | | ?????????????????### !%## / # #????? | | ?????????????????## @ * ## [### !% #????? | | ?????????????????## # %#####??### #????? | | ???????????? =###??????## #????? | | ???????? ## #!#########?# ##????? | | ????????????#### # ##! ### #?????? | | ?????????????#### ###### ## #?????? | | ??????????????#### ####??## #?????? | | ???????????????### !%#####???## #####?????? | | ????????????????## ??????### ##?????????? | | ????????????????## ?????????# #??????????? | | ????????????????### ## ###?????????# #??????????? | | ????????????????######*!###?????????# ######?????? | | ?????????????????#####%|????????????# #?????? | | ????????????????????##=!????????????###### #?????? | | ????????????????????## ?????????????????# #?????? | | ????????????????????# =???? ######## ###???? | | ?????????????????????? %??? #???? | | ???????????????????????????????# #???? | | ???????????????????????????????############ ##??? | | ????????????????????????????????????????## ##?? | | ????????????????????????????????????????# ##? | | ???????????????????????????????????????## ## | | ??????????????????????????????????????## # | | ?????????????????????????????????????## # | | ????????????????????????????########## ## | +----------------------------------------------------+ Best States ------------- Heat Dissipation 25 Energy Generation 10 Energy Capacity 250 Matter Stores 300 Matter Capacity 300 Sight Range 16 Terrain Scan Density 10 Utility Shielding 33 Evasion (%) 40 Recoil Reduction 2 Item Schematics ----------------- None Robot Schematics ------------------ None Fabricated ------------ Nothing Alien Tech Used ----------------- None Achievements -------------- None Challenges ------------ None Game ------ Seed MappingScatterAutocannon Manual? 0 Play Time 00:10:27 Cumulative 149.7 hours Start 2024.05.03 @ 16:46:03 End 2024.05.03 @ 17:33:52 Sessions 1 Manual Loads 0 Difficulty Rogue Special Mode None Game No. 167 Rogue 167 Adventurer 0 Explorer 0 Win Type - Total 0 Types 0/0/0/0/0/0/0/0/0 Lore% 33 Gallery% 59 Achievement% 41 Wizard Run 0 Options --------- Layout 1 ASCII 0 Keyboard 1 Movement Vi Keybinds 0 Fullscreen 1 Font 24/Smallcaps Map View 50x35 Zoom Use 0% Tactical HUD 1 Map Filters NONE Filters NONE Steam 1 RUN: fbec92bc-5390-4d5a-9edc-bbd0d167876f